Cogmind - Beta 9.5 @@@ ROGUE MODE // 2020.04.08 @ 16:03:45 Player: Odoacre Result: Destroyed by G-47 Trooper with Particle Gun Performance ------------- Evolutions (3) 1500 Regions Visited (5) 1000 Robots Destroyed (56) 280 Value Destroyed (1961) 1961 Prototype IDs (4) 80 Alien Tech Used (0) 0 Bonus (66) 66 TOTAL SCORE: 4887 Bonus ------- High Alert Combat Kills 66 Cogmind --------- Core Integrity 0/700 Matter 46/300 Energy 63/100 System Corruption 0% Temperature Cool (29) Movement Core (100) Ox1 Location -7/Factory Parts ------- > --- POWER (2) -------- (None) > --- PROPULSION (4) --- (None) > --- UTILITY (4) ------ Visual Processing Unit Enhanced Optical Array Advanced Targeting Computer System Shield > --- WEAPON (3) ------- Improved Grenade Launcher > --- INVENTORY (4) ---- Flak Cannon Improved Grenade Launcher Peak State ------------ > --- POWER ------------ Improved Ion Engine Light Deuterium Engine > --- PROPULSION ------- Advanced Treads Advanced Treads Advanced Treads Advanced Treads > --- UTILITY ---------- Large Storage Unit Visual Processing Unit Advanced Targeting Computer Advanced Targeting Computer > --- WEAPON ----------- Pulse Rifle Cooled Pulse Rifle Plasma Cannon > --- INVENTORY -------- Improved Ion Engine Visual Processing Unit Advanced Targeting Computer System Shield Improved EM Shotgun Gauss Rifle Flak Cannon Grenade Launcher Mining Laser [Rating: 40] Favorites ----------- Power Improved Ion Engine Engine Improved Ion Engine Power Core Light Nuclear Core Propulsion Light Treads Treads Light Treads Wheel Wheel Flight Unit Cooled VTOL Module Utility Advanced Targeting Computer Device Improved Sensor Array Storage Large Storage Unit Processor Advanced Targeting Computer Hackware System Shield Protection Improved Light Armor Plating Weapon Improved EM Shotgun Energy Gun Improved EM Shotgun Energy Cannon Plasma Cannon Ballistic Gun Heavy Assault Rifle Ballistic Cannon Flak Cannon Launcher Grenade Launcher Special Weapon Mining Laser Build | -11 -10 -9 -8 -8 -7 ------- Run | Scr Mat Mat Mat Sto Fac Slots Evolved 6 | . . 2 2 . 2 Power 1 | . . . . . 1 Propulsion 2 | . . 1 1 . . Utility 2 | . . 1 1 . . Weapon 1 | . . . . . 1 Parts Attached 69 | 6 3 3 13 22 22 Power 8 | 1 . . 1 3 3 Engine 7 | 1 . . 1 2 3 Core 1 | . . . . 1 . Reactor . | . . . . . . Propulsion 21 | 2 . 1 3 11 4 Treads 15 | . . 1 3 11 . Leg . | . . . . . . Wheel 5 | 2 . . . . 3 Hover . | . . . . . . Flight 1 | . . . . . 1 Utility 12 | 1 1 2 2 1 5 Device 1 | . . . 1 . . Storage 2 | 1 1 . . . . Processor 6 | . . 2 . . 4 Hackware 1 | . . . . . 1 Protection 2 | . . . 1 1 . Artifact . | . . . . . . Weapon 28 | 2 2 . 7 7 10 Energy Gun 8 | . . . 1 3 4 Energy Cannon 1 | . . . . . 1 Ballistic Gun 9 | 2 1 . 2 3 1 Ballistic Cannon 1 | . . . . . 1 Launcher 8 | . 1 . 3 1 3 Special Weapon 1 | . . . 1 . . Impact Weapon . | . . . . . . Slashing Weapon . | . . . . . . Piercing Weapon . | . . . . . . Special Melee Weapon . | . . . . . . Unidentified Prototypes 4 | . . . . 2 2 Parts Lost 30 | . . . 2 14 14 Power 4 | . . . . 2 2 Propulsion 14 | . . . 1 7 6 Utility 3 | . . . . 1 2 Weapon 9 | . . . 1 4 4 Highest Loss Streak 9 | . . . 1 9 7 Average Slot Usage (%) 86 | . 85 93 96 85 75 Engine 8 | . 14 11 9 4 8 Core 1 | . . . . 2 1 Treads 20 | . . 11 31 26 20 Wheel 7 | . 28 22 3 . 1 Device 2 | . . . 5 3 . Storage 9 | . 14 11 9 9 5 Processor 14 | . . 15 18 18 17 Protection 2 | . . . 1 4 2 Energy Gun 7 | . . . 3 13 9 Ballistic Gun 6 | . 19 11 9 1 2 Launcher 3 | . 8 11 1 1 . Naked Turns . | . . . . . . Heaviest Build 42 | 12 27 27 32 30 42 Greatest Support 88 | 26 26 26 80 88 88 Greatest Overweight (x) 5 | . 1 1 . 1 5 Average Overweight (x) . | . . 1 . . . Largest Inventory Capacity 12 | 6 12 10 10 10 10 Average Capacity 9 | 5 8 10 10 10 8 Most Carried 10 | 4 6 6 9 10 10 Average Carried 6 | 1 5 4 6 8 7 Final Capacity 10 | 6 10 10 10 10 4 Final Carried 10 | 4 5 6 9 10 2 Class Distribution -------------------- 53% | Mutant 36% | Scavenger-Mutant 9% | Gunner Dominant Class ---------------- Mutant | -10/Materials Mutant | -9/Materials Scavenger-Mutant | -8/Materials Scavenger-Mutant | -8/Storage Gunner | -7/Factory Resources | -11 -10 -9 -8 -8 -7 ----------- Run | Scr Mat Mat Mat Sto Fac Matter Collected 1026 | 179 106 41 265 360 75 Remotely . | . . . . . . Salvage Created 1885 | . 108 59 325 1061 332 Parts 114 | . 13 4 25 57 15 Haulers Intercepted . | . . . . . . Recyclers Shooed 2 | . . . . 2 . Parts Field Recycled . | . . . . . . Retrieved Matter . | . . . . . . Parts Self-Destructed . | . . . . . . Prevented . | . . . . . . Kills | -11 -10 -9 -8 -8 -7 ------- Run | Scr Mat Mat Mat Sto Fac Combat Hostiles Destroyed 45 | . 5 1 9 22 8 Guns 28 | . 2 1 5 16 4 Cannons 1 | . . . . . 1 AOE 15 | . 3 . 4 5 3 Classes Destroyed 9 | . 2 3 1 1 2 Builder 2 | . . 1 . 1 . Operator 3 | . . . . 2 1 Watcher 6 | . . 1 2 2 1 Swarmer 10 | . 3 . 3 4 . Grunt 19 | . 2 . 3 9 5 Brawler 1 | . . . . . 1 Duelist 1 | . . . . . 1 Sentry 13 | . . 1 2 9 1 Hunter 1 | . . . 1 . . Best Kill Streak 11 | . 3 3 5 11 4 Combat Bots Only 6 | . 3 1 4 6 3 Max Kills in Single Turn 3 | . 2 2 3 2 2 Gunslinging . | . . . . . . Exploded 2 | . 2 . 2 2 1 Melee . | . . . . . . Uniques/NPCs Destroyed . | . . . . . . Combat | -11 -10 -9 -8 -8 -7 -------- Run | Scr Mat Mat Mat Sto Fac Damage Taken 4435 | . 138 163 497 1771 1866 Core 1104 | . 30 29 45 288 712 Absorbed by Shields . | . . . . . . Core Remaining (%) 79 | 100 88 92 . 39 . Volleys Fired 133 | . 11 8 34 59 21 Largest 3 | . 2 2 2 2 3 Hottest 163 | . 50 53 100 117 163 Shots Fired 249 | . 22 13 52 104 58 Gun 204 | . 19 8 39 98 40 Cannon 9 | . . . . . 9 Launcher 26 | . 3 5 3 6 9 Special 10 | . . . 10 . . Kinetic 91 | . 19 8 37 15 12 Thermal 85 | . . . 12 47 26 Explosive 26 | . 3 5 3 6 9 Electromagnetic 47 | . . . . 36 11 Robot Hit Streak 31 | . 8 11 25 26 31 Robot Miss Streak 5 | . 5 2 2 1 2 Penetration Max . | . . . . . . Secondary Targets 2 | . . . . 2 . Max Gunslinging Chain 1 | . . . . 1 . Shots Hit Robots 188 | . 10 11 31 90 46 Core Hits 119 | . 7 7 19 54 32 Critical Hits 3 | . 1 . 1 . 1 Critical Kills 1 | . . . 1 . . Critical Parts Destroyed 2 | . 1 . . . 1 Melee Attacks . | . . . . . . Impact . | . . . . . . Slashing . | . . . . . . Piercing . | . . . . . . Sneak Attacks . | . . . . . . Combat Hostiles . | . . . . . . Follow-up Attacks . | . . . . . . Damage Inflicted 4956 | . 218 225 803 2113 1597 Guns 2757 | . 80 107 417 1573 580 Cannons 181 | . . . . . 181 Explosions 2010 | . 138 118 386 536 832 Melee . | . . . . . . Ramming 8 | . . . . 4 4 Kinetic 880 | . 80 107 402 163 128 Thermal 1515 | . . . 15 962 538 Explosive 1737 | . 138 118 386 367 728 Electromagnetic 816 | . . . . 617 199 Impact . | . . . . . . Slashing . | . . . . . . Piercing . | . . . . . . Highest Corruption 4 | . 2 . . 4 . Average Corruption 2 | . 2 . . 3 . Corruption Purged . | . . . . . . Effects 7 | . 4 . . 3 . Message Errors 1 | . . . . 1 . Energy Discharges 4 | . 3 . . 1 . Data Loss (minor) 2 | . 1 . . 1 . Overload Shots . | . . . . . . Overflow Damage 51 | . . . . 17 34 Projectiles 5 | . . . . . 5 Explosions 46 | . . . . 17 29 Melee . | . . . . . . Knockbacks . | . . . . . . Impact . | . . . . . . Kinetic . | . . . . . . Secondary . | . . . . . . Self-Inflicted Damage 202 | . 28 . . 82 92 Shots 8 | . 1 . . 3 4 Rammed 3 | . . . . 2 1 Targets Rammed 3 | . . . . 2 1 Kicked . | . . . . . . Crushed . | . . . . . . Highest Temperature 674 | . 10 3 6 363 674 Average Temperature 137 | . 6 3 2 132 174 Received Heat Transfer 1491 | . 24 54 144 603 666 Effects 17 | . . . . 2 15 Shutdowns 2 | . . . . . 2 Matter Decay 3 | . . . . . 3 Short Circuit 4 | . . . . . 4 Damage (minor) 3 | . . . . 2 1 Damage (major) 5 | . . . . . 5 Siege Activations . | . . . . . . Robots Corrupted 1 | . . . . 1 . Combat Hostiles 1 | . . . . 1 . Parts Fried 10 | . . . . 8 2 Impact Corruptions . | . . . . . . Robots Melted . | . . . . . . Combat Hostiles . | . . . . . . Parts Melted 8 | . . . . 7 1 Heat Transferred 2857 | . . . 37 1865 955 Parts Sabotaged . | . . . . . . Parts Stolen . | . . . . . . Parts Stripped . | . . . . . . Power Chain Reactions 3 | . . . . 2 1 Missiles Intercepted . | . . . . . . Alert | -11 -10 -9 -8 -8 -7 ------- Run | Scr Mat Mat Mat Sto Fac Peak Influence 570 | . 173 150 379 570 377 Average Influence 239 | . 110 98 254 321 257 Maximum Alert Level 2 | . . . 1 2 1 Low Security (%) 43 | 100 100 100 30 16 33 Level 1 48 | . . . 69 63 66 Level 2 7 | . . . . 20 . Level 3 . | . . . . . . Level 4 . | . . . . . . Level 5 . | . . . . . . High Security . | . . . . . . Max Security . | . . . . . . Squads Dispatched 9 | . 1 1 1 3 3 Investigation 2 | . . . 1 1 . Extermination . | . . . . . . Reinforcement 5 | . 1 1 . 2 1 Assault . | . . . . . . Garrison 2 | . . . . . 2 Intercept . | . . . . . . Construction Impeded . | . . . . . . Haulers Reinforced . | . . . . . . Stealth | -11 -10 -9 -8 -8 -7 --------- Run | Scr Mat Mat Mat Sto Fac Distress Signals 3 | . . . 1 2 . Communications Jammed . | . . . . . . Distress Signals . | . . . . . . Times Spotted 77 | . 7 4 14 32 20 Peak Tracking Total 9 | . 3 2 5 6 9 Tactical Retreats 7 | . . . . 5 2 Traps | -11 -10 -9 -8 -8 -7 ------- Run | Scr Mat Mat Mat Sto Fac Traps Triggered 5 | . 1 . . 4 . Indirectly . | . . . . . . Trap Hack Attempts . | . . . . . . Triggered . | . . . . . . Disarmed . | . . . . . . Reprogrammed . | . . . . . . Reused . | . . . . . . Traps Extracted . | . . . . . . Installed . | . . . . . . Triggered . | . . . . . . Machines | -11 -10 -9 -8 -8 -7 ---------- Run | Scr Mat Mat Mat Sto Fac Machines Disabled 4 | . . . 2 1 1 Max in Single Turn 2 | . . . 2 1 1 Garrison Access 1 | . . . . 1 . Machines Sabotaged . | . . . . . . Garrisons Compromised . | . . . . . . Overloaded Fab Kills . | . . . . . . Fab Network Shutdowns . | . . . . . . Hacking | -11 -10 -9 -8 -8 -7 --------- Run | Scr Mat Mat Mat Sto Fac Machines Accessed 9 | . 4 1 1 3 . Terminals 8 | . 4 1 1 2 . Fabricators . | . . . . . . Repair Stations . | . . . . . . Recycling Units . | . . . . . . Scanalyzers . | . . . . . . Garrison Access 1 | . . . . 1 . Total Hacks 26 | . 11 3 5 7 . Successful 14 | . 5 2 3 4 . Failed 12 | . 6 1 2 3 . Catastrophic . | . . . . . . Database Lockouts . | . . . . . . Manual 21 | . 10 3 4 4 . Terminals 23 | . 11 3 5 4 . Fabricators . | . . . . . . Repair Stations . | . . . . . . Recycling Units . | . . . . . . Scanalyzers . | . . . . . . Garrison Access 3 | . . . . 3 . Terminal Hacks 3 | . 1 . 1 1 . Locate Traps 1 | . . . 1 . . Registered Prototypes 1 | . 1 . . . . Zone Layout 1 | . . . . 1 . Fabricator Hacks . | . . . . . . Repair Station Hacks . | . . . . . . Recycling Unit Hacks . | . . . . . . Scanalyzer . | . . . . . . Garrison Access Hacks 1 | . . . . 1 . Seal Access 1 | . . . . 1 . Unauthorized Hacks 30 | . 14 5 6 5 . Terminals 10 | . 4 2 2 2 . Assimilate 5 | . 2 1 1 1 . Botnet 5 | . 2 1 1 1 . Fabricators . | . . . . . . Repair Stations . | . . . . . . Recycling Units . | . . . . . . Scanalyzers . | . . . . . . Garrison Access . | . . . . . . Data Cores Recovered . | . . . . . . Used . | . . . . . . Hacking Detections 7 | . 3 1 1 2 . Full Trace Events 3 | . 1 1 1 . . Feedback Events . | . . . . . . Feedback Blocked . | . . . . . . Robot Schematics Acquired . | . . . . . . Robots Built . | . . . . . . Matter . | . . . . . . Time . | . . . . . . Total Robot Build Rating . | . . . . . . Part Schematics Acquired . | . . . . . . Parts Built . | . . . . . . Matter . | . . . . . . Time . | . . . . . . Total Part Build Rating . | . . . . . . Parts Repaired . | . . . . . . Time . | . . . . . . Parts Recycled . | . . . . . . Recycled Matter . | . . . . . . Retrieved Matter . | . . . . . . Retrieved Components . | . . . . . . Parts Scanalyzed . | . . . . . . Part Schematics Acquired . | . . . . . . Parts Damaged . | . . . . . . Bothacking | -11 -10 -9 -8 -8 -7 ------------ Run | Scr Mat Mat Mat Sto Fac Used RIF Installer . | . . . . . . Robots Hacked . | . . . . . . Non-combat . | . . . . . . Combat . | . . . . . . Robot Hacks Applied . | . . . . . . Relay Couplers Released . | . . . . . . Robots Rewired . | . . . . . . Allies Hacked . | . . . . . . Hacks Repelled . | . . . . . . Allies | -11 -10 -9 -8 -8 -7 -------- Run | Scr Mat Mat Mat Sto Fac Total Allies . | . . . . . . Largest Group . | . . . . . . Highest-Rated Group . | . . . . . . Highest-Rated Ally . | . . . . . . Total Orders . | . . . . . . Ally Attacks . | . . . . . . Total Damage . | . . . . . . Kills . | . . . . . . Allies Corrupted . | . . . . . . Allies Melted . | . . . . . . Intel | -11 -10 -9 -8 -8 -7 ------- Run | Scr Mat Mat Mat Sto Fac Robot Analysis Total . | . . . . . . Derelict Logs Recovered . | . . . . . . Drone Launches . | . . . . . . Drone Recoveries . | . . . . . . Exploration | -11 -10 -9 -8 -8 -7 ------------- Run | Scr Mat Mat Mat Sto Fac Turns Passed 2089 | 51 321 175 371 805 366 Spaces Moved 1306 | 48 298 149 149 376 286 Core 100 | 12 . . . . 88 Treads 648 | . . . 149 376 123 Legs . | . . . . . . Wheels 498 | 36 298 149 . . 15 Hover . | . . . . . . Flight 60 | . . . . . 60 Fastest Speed 35 | 50 90 100 160 145 35 Average Speed 119 | 79 92 100 160 159 90 Slowest Speed 300 | 90 100 100 160 180 300 Overloaded Moves . | . . . . . . Propulsion Burnouts . | . . . . . . Robots Hopped . | . . . . . . Cave-ins Triggered . | . . . . . . Exploration Rate (%) 24 | 4 41 21 18 52 10 Regions Visited 5 Branch Regions 1 Pre-discovered Areas . | . . . . . . Known Exits Taken . | . . . . . . Unknown Exits Taken 5 | 1 1 1 1 1 . Scrap Searched . | . . . . . . Spaces Dug 8 | . . . 8 . . Terrain Destroyed 167 | . 18 41 30 55 23 Melee . | . . . . . . Projectile 9 | . . . 9 . . AOE 158 | . 18 41 21 55 23 Actions | -11 -10 -9 -8 -8 -7 --------- Run | Scr Mat Mat Mat Sto Fac Total 1572 | 57 324 161 206 474 350 Wait 3 | . . . . 3 . Move 1301 | 47 297 148 148 375 286 Hop . | . . . . . . Pick Up 32 | 4 6 2 7 7 6 Fast Attach 29 | 6 2 2 3 9 7 Attach 19 | . . 1 2 5 11 Detach 2 | . . . . . 2 Swap 21 | . 1 . 8 8 4 Drop 28 | . 7 . 4 5 12 Fire 133 | . 11 8 34 59 21 Melee . | . . . . . . Ram 1 | . . . . . 1 Kick . | . . . . . . Crush 2 | . . . . 2 . Escape Stasis . | . . . . . . Rewire 1 | . . . . 1 . Trap . | . . . . . . Miscellaneous . | . . . . . . Route ------- -11/Scrapyard -10/Materials (discovered 2 exits: *Mat / [*Min]) -9/Materials (discovered 2 exits: *Mat / [*Min]) -8/Materials -8/Storage -7/Factory History --------- Turn | Location | Event 16 | -11/Scrapyard | Discovered new exit (range 15) 52 | -11/Scrapyard | Entered Materials 124 | -10/Materials | Discovered new exit (range 6) 151 | -10/Materials | Discovered new exit (range 4) 310 | -10/Materials | Build established: Mutant 373 | -10/Materials | Entered another Materials area 373 | -9/Materials | Evolved 2 slots: Propulsion x1, Utility x1 523 | -9/Materials | Discovered new exit (range 3) 529 | -9/Materials | Discovered new exit (range 16) 548 | -9/Materials | Entered another Materials area 548 | -8/Materials | Evolved 2 slots: Propulsion x1, Utility x1 857 | -8/Materials | Discovered new exit (range 6) 919 | -8/Materials | Entered Storage 997 | -8/Storage | Build established: Scavenger-Mutant 1097 | -8/Storage | Lost 3 parts (1p2n) 1301 | -8/Storage | Lost 9 parts (1p3n1u4w) 1302 | -8/Storage | Core integrity fell below 50% 1703 | -8/Storage | Discovered new exit (range 16) 1724 | -8/Storage | Entered Factory 1724 | -7/Factory | Evolved 2 slots: Power x1, Weapon x1 1964 | -7/Factory | Garrison activated, responded to threat 2012 | -7/Factory | Lost 7 parts (2p2n3w) 2035 | -7/Factory | Core integrity fell below 50% 2036 | -7/Factory | Core integrity fell below 20% 2067 | -7/Factory | Lost 6 parts (4n1u1w) 2090 | -7/Factory | Destroyed by G-47 Trooper with Particle Gun Last Messages --------------- 02028_ U-05 Engineer lays Concrete. 02031_ Imp. EM Shotgun destroyed. 02031_ U-05 Engineer lays Concrete. 02035_ Fusion Modulator explodes. 02035_ Wheel destroyed. 02035_ Cld. VTOL Module destroyed. 02035_ Fusion Modulator explodes. 02035_ Scanalyzer disabled. 02035_ K-01 Serf collects debris. 02035_ U-05 Engineer lays Concrete. 02036_ Adv. Targeting Computer destroyed. 02044_ U-05 Engineer lays Concrete. 02062_ K-01 Serf cleans the Construction Platform. 02066_ Acquired Enh. Optical Array. 02069_ K-01 Serf collects debris. 02083_ Construction Platform disabled. 02083_ Destroyed Particle Gun. 02086_ G-47 Trooper destroyed. 02086_ Y-54 Guardian destroyed. 02089_ K-01 Serf collects debris. Map ----- +----------------------------------------------------+ | ????? #?????? | | ????? #???""" | | ???? +??"""" | | ???? #??"""" | | ???? #?? | | ????????????########/########## #?? | | ??????????????# #??????# #### | | ??????????????# #??????# | | ??????????????# #??????# | | ??????????????# #??????# | | ??????????????# ###????# | | ??????????????# # +????# | | ??????????????# # #????# ####### | | ??????????????# # ###### ## | | ??????????????# # ##[[ | | ??????????????#######+## ##[[ [ | | ????????????????????# ##[ | | ????????????????????# ## | | ????????????????????# ## | | ????????????????????######Y#### ##### | | ????????????????????# Y ####+### | | ????????????????????# """"""" ^ | | ????????????????????# """ """ ! ## | | ????????????????????# """ % # | | ????????????????????# """" g % ## | | ????????????????????# g @k l #?# | | ????????????????????# ##?############# | | ????????????????????#= ?????????? | | ????????????????????# # """"""??????? | | ????????????????????#!! # ?? ???????? | | ????????????????????#!!! #?""??? ?????? | | ????????????????????#!!! #?"G ?????? ????? | | ????????????????????######## #####???" ??????????? | | ???????????????????????????###???????? ?????????? | | ?????????????????????????????###########+######### | | ??????????????????????????? ^ | | ??????????????????????????? | | ??????????????????????????? ^ | | ??????????????????????????? ^ % | | ??????????????????????????? | | ?????????????????????????????####+#############+## | | ?????????????????????????????????????????????#=| | | ?????????????????????????????????????????????#=!] | | ?????????????????????????????????????????????#* | | ?????????????????????????????????????????????# | | ?????????????????????????????????????????????# | | ?????????????????????????????????????????????# | | ?????????????????????????????????????????????# | | ?????????????????????????????????????????????# | | ?????????????????????????????????????????????# | +----------------------------------------------------+ Best States ------------- Heat Dissipation 34 Energy Generation 21 Energy Capacity 325 Matter Stores 300 Matter Capacity 300 Sight Range 22 Robot Scan Range 13 Terrain Scan Density 10 Armor Coverage 150 Evasion (%) 63 Targeting Accuracy 16 Recoil Reduction 4 Defensive Hacking 10 Item Schematics ----------------- None Robot Schematics ------------------ None Fabricated ------------ Nothing Alien Tech Used ----------------- None Achievements -------------- None Challenges ------------ None Game ------ Seed NovaGuidanceLoader Manual? 0 Play Time 00:38:04 Cumulative 17.7 hours Start 2020.04.08 @ 15:26:09 End 2020.04.08 @ 16:03:45 Sessions 1 Manual Loads 0 Difficulty Rogue Special Mode None Game No. 26 Rogue 25 Adventurer 1 Explorer 0 Win Type - Total 0 Types 0/0/0/0/0/0/0 Lore% 19 Gallery% 18 Achievement% 17 Wizard Run 0 Options --------- ASCII 1 Keyboard 0 Movement Vi Keybinds 0 Fullscreen 1 Font 28/SmallcapsGlow Map View 84x54 Tactical HUD 1 Map Filters NONE Filters NONE Steam 1 RUN: 5ffad013-684b-45f9-b931-7aef5b75b16d